bitfinex/quotes_ETHUSD_20240703
["timestamp","ask_amount","ask_price","bid_price","bid_amount"]
[1720043785970,0.63246463,3305.4,3305.2,3.02546]
[1720043786172,0.63246463,3305.4,3305.3,0.04291081]
[1720043786347,1.26492926,3305.5,3304.8,3.02583]
[1720043786546,0.63226338,3305.2,3304.9,3.06862878]
[1720043786850,0.63226338,3305.1,3304.9,0.04286878]
[1720043787250,0.63226338,3305.1,3305.0,8.50862]
[1720043787460,1.58062887,3305.5,3305.0,8.50862]
[1720043787461,0.63226338,3305.6,3305.4,3.02529]
[1720043787686,0.63226338,3305.6,3305.4,6.05058]
[1720043787896,0.63226338,3305.7,3305.4,6.05058]
[1720043788211,0.63226338,3305.7,3305.5,0.04286114]
[1720043788362,0.63226338,3305.6,3305.5,0.04286114]
[1720043788708,0.94839507,3305.8,3305.5,0.04286114]
[1720043788709,0.94839507,3305.7,3305.5,0.04286114]
[1720043788860,0.22133243,3305.6,3305.5,0.04286114]
[1720043789203,1.1697275,3305.6,3305.5,0.04280382]
[1720043789368,1.1697275,3305.6,3305.1,3.02558]
[1720043789569,0.63187305,3305.5,3305.1,3.02558]
[1720043789910,0.63186716,3305.5,3305.1,3.02558]
[1720043790691,0.63175508,3305.5,3305.1,3.02558]
[1720043792466,0.63175508,3305.4,3305.1,3.02558]
[1720043794490,0.63175508,3305.5,3305.1,3.02558]
[1720043795595,0.63175508,3305.5,3305.3,3.02539]
[1720043795984,0.63175508,3305.5,3305.3,6.05075]
[1720043796186,0.63175508,3305.5,3305.4,8.4089]
[1720043796424,0.63175508,3305.9,3305.8,3.02498]
[1720043796618,0.74689542,3306.1,3305.9,3.02489]
[1720043797116,0.74689542,3306.1,3306.0,3.0248]
[1720043797690,0.74689542,3306.1,3305.8,3.02492]
[1720043798245,0.1152109,3306.1,3305.8,3.02492]
[1720043798429,0.1152109,3306.1,3305.4,2.2591]
[1720043798430,0.91634822,3306.1,3305.4,3.02528]
[1720043798636,0.63168452,3305.9,3305.4,3.02528]
[1720043798818,0.63168452,3305.9,3305.4,6.05054]
[1720043799023,0.63168452,3305.8,3305.5,0.0423645]
[1720043799523,0.63168452,3305.8,3305.6,2.2591]
[1720043800060,0.63168452,3305.8,3305.7,8.35165033]
[1720043800376,0.1152109,3306.1,3306.0,3.0248]
[1720043801130,0.1152109,3306.1,3306.0,3.06721033]
[1720043804245,0.74724971,3306.1,3306.0,3.06721033]
[1720043804781,0.74724971,3306.1,3306.0,5.51781033]
[1720043804964,0.74724971,3306.1,3306.0,9.39687936]
[1720043804965,0.1152109,3306.1,3306.0,9.39687936]
[1720043805140,0.74724971,3306.1,3306.0,12.42167936]
[1720043805337,0.1152109,3306.1,3306.0,14.58367936]
[1720043805566,0.1152109,3306.1,3306.0,17.58367936]
[1720043807388,0.63203881,3307.0,3306.9,3.02398]
[1720043807588,0.94805821,3307.1,3306.9,3.02398]
[1720043807745,0.63205612,3307.1,3307.0,0.0419138]
[1720043807940,0.95305821,3307.2,3307.0,0.0419138]
[1720043808397,0.95305821,3307.2,3306.9,3.02398]
[1720043808603,0.63194708,3307.0,3306.9,3.02398]
[1720043809168,0.94774806,3307.5,3307.2,3.0237]
[1720043809374,1.58487585,3307.8,3307.2,3.0237]
[1720043809375,0.005,3307.8,3307.7,6.04648]
[1720043809684,0.005,3307.8,3307.7,9.06972]
[1720043809863,0.005,3307.8,3307.7,9.11141237]
[1720043810055,0.005,3307.8,3307.7,10.02255361]
[1720043811471,0.005,3308.3,3308.2,3.02279]
[1720043811868,0.005,3308.3,3308.2,3.0640016]
[1720043812382,0.94774806,3309.2,3308.8,2.3357]
[1720043812584,0.1152109,3309.4,3309.2,3.0218]
[1720043812799,0.1152109,3309.4,3309.3,3.02178]
[1720043812986,0.1152109,3309.4,3309.2,3.0218]
[1720043813168,0.1152109,3309.4,3309.3,3.06277041]
[1720043813991,0.1152109,3309.4,3309.3,0.04099041]
[1720043814337,0.1152109,3309.4,3309.1,3.02196]
[1720043814493,0.1152109,3309.4,3309.3,0.03807915]
[1720043814706,0.1152109,3309.4,3308.9,3.02214]
[1720043814893,0.1152109,3309.4,3309.3,0.03807915]
[1720043815389,0.1152109,3309.4,3309.3,0.152]
[1720043815892,0.1152109,3309.4,3309.3,0.19007915]
[1720043816981,0.42889999,3309.4,3309.3,0.152]
[1720043817186,3.45058999,3309.4,3309.3,0.152]
[1720043817795,6.47227999,3309.4,3309.3,0.152]
[1720043818111,3.45058999,3309.4,3309.3,0.152]
[1720043818308,3.1369009,3309.4,3309.3,0.152]
[1720043819486,0.1152109,3309.4,3309.3,0.152]
[1720043820695,3.1369009,3309.4,3309.3,0.152]
[1720043821614,6.1585909,3309.4,3309.3,0.152]
[1720043821819,6.77444999,3309.4,3309.3,0.152]
[1720043822022,9.12324999,3309.4,3309.3,0.152]
[1720043822204,12.12324999,3309.4,3309.3,0.152]
[1720043823225,3.02206,3309.0,3308.2,2.075943]
[1720043823953,3.02206,3309.0,3308.1,3.02287]
[1720043824254,0.302206,3308.9,3308.1,3.02287]
[1720043824847,3.324376,3308.9,3307.9,3.023]
[1720043827220,3.324376,3308.9,3307.7,3.02324]
[1720043827221,3.02225,3308.8,3307.7,3.02324]
[1720043827436,3.02225,3308.8,3307.8,3.02314]
[1720043827644,3.02225,3308.8,3307.7,3.02324]
[1720043827645,3.02234,3308.7,3307.7,3.02324]
[1720043827845,0.604459,3308.6,3307.7,3.02324]
[1720043828152,0.604459,3308.6,3307.8,3.02315]
[1720043829965,3.626889,3308.6,3307.8,3.02315]
[1720043830176,3.02243,3308.6,3307.9,0.03754297]
[1720043830675,3.02252,3308.5,3307.9,0.03754297]
[1720043831645,3.02252,3308.5,3307.7,3.02324]
[1720043831847,3.627015,3308.5,3307.7,3.02324]
[1720043832033,3.627015,3308.5,3307.8,0.03754297]
[1720043832874,3.02262,3308.4,3307.8,0.03754297]
[1720043833374,3.02262,3308.4,3307.6,3.02329]
[1720043833871,3.02262,3308.4,3307.7,0.03754297]
[1720043834030,3.6875745,3308.4,3307.7,0.03754297]
[1720043836566,3.02262,3308.4,3307.7,0.03754297]
[1720043837275,3.02271,3308.3,3307.7,0.03754297]
[1720043838183,0.6275091,3308.8,3307.7,0.03754297]
[1720043838184,3.02315,3307.8,3307.7,0.03754297]
[1720043838391,6.0463,3307.8,3307.7,0.03754297]
[1720043838689,3.02367,3307.3,3306.1,4.235599]
[1720043838877,3.02385,3307.1,3306.0,2.342]
[1720043839185,3.02395,3307.0,3306.1,3.02469]
[1720043839507,3.02395,3307.0,3305.7,3.2]
[1720043839508,3.02426,3306.6,3305.7,3.02504]
[1720043839823,3.02438,3306.5,3305.8,0.547074]
[1720043840105,3.02451,3306.4,3305.8,0.547074]
[1720043840254,3.02451,3306.4,3305.6,2.4457]
[1720043840455,3.02451,3306.4,3305.1,6.682597]
[1720043840456,3.02463,3306.2,3305.1,6.682597]
[1720043840655,3.02463,3306.2,3305.2,3.02548]
[1720043840896,3.02463,3306.2,3305.1,5.47125]
[1720043840897,3.02483,3306.0,3305.1,5.47125]
[1720043841204,3.02483,3306.0,3305.2,0.547125]
[1720043841361,3.02491,3305.9,3305.2,0.547125]
[1720043842451,3.02499,3305.8,3305.2,0.547125]
[1720043842657,3.02517,3305.6,3304.7,4.23746]
[1720043842974,2.88308564,3306.3,3304.5,2.3948]
[1720043842975,0.62978564,3306.1,3304.5,2.3948]
[1720043843156,3.02555,3305.2,3304.5,2.3948]
[1720043843364,3.02563,3305.1,3304.3,3.02631]
[1720043843563,3.02563,3305.1,3304.4,0.302631]
[1720043843813,3.02578,3305.0,3304.4,0.302631]
[1720043844010,3.02537,3305.4,3303.9,5.18868]
[1720043844191,5.47621,3305.6,3303.9,5.18868]
[1720043844192,3.02595,3304.8,3303.9,5.18868]
[1720043844611,3.02595,3304.8,3304.0,0.06052541]
[1720043845205,3.02595,3304.8,3304.1,0.03377311]
[1720043845412,3.026,3304.7,3304.1,0.03377311]
[1720043845801,3.026,3304.7,3303.9,3.02668]
[1720043846015,3.026,3304.7,3304.2,0.03152157]
[1720043846331,3.026,3304.7,3304.3,0.03152157]
[1720043846534,3.026,3304.7,3304.0,0.546268]
[1720043846830,3.026,3304.7,3304.4,0.03152157]
[1720043847039,3.026,3304.7,3304.0,0.546268]
[1720043847238,3.026,3304.7,3304.5,0.03152157]
[1720043847394,3.026,3304.7,3304.0,0.546268]
[1720043847735,3.0261,3304.6,3304.0,0.546268]
[1720043847887,3.0261,3304.6,3303.8,2.436]
[1720043848087,3.0261,3304.6,3303.8,5.436]
[1720043848393,3.02619,3304.5,3303.8,5.436]
[1720043848600,3.02619,3304.5,3303.8,2.436]
[1720043849657,3.02619,3304.5,3303.6,6.02699]
[1720043849804,3.02619,3304.5,3303.7,0.818899]
[1720043850416,3.02619,3304.5,3303.5,2.162]
[1720043850417,3.02619,3304.5,3303.5,5.18909]
[1720043850738,3.02656,3304.1,3303.2,4.13472528]
[1720043850943,3.02656,3304.1,3303.2,2.92268228]
[1720043851301,3.02656,3304.1,3303.2,5.95004228]
[1720043851503,3.02656,3304.1,3303.2,6.84778451]
[1720043852448,3.02681,3303.8,3302.9,3.02757]
[1720043852663,2.162,3304.3,3302.6,3.02785]
[1720043852803,2.162,3304.3,3302.2,2.2872]
[1720043852804,3.0272,3303.4,3302.4,3.02803]
[1720043853570,2.3105,3304.9,3302.7,2.2872]
[1720043853739,3.02661,3304.1,3303.1,3.02745]
[1720043853949,1.043,3304.4,3303.2,3.02734]
[1720043853950,3.0265,3304.2,3303.2,3.02734]
[1720043854147,1.043,3304.4,3303.3,0.06054362]
[1720043854336,3.02636,3304.3,3303.4,3.02711]
[1720043854687,3.02636,3304.3,3303.5,3.02705]
[1720043855134,1.043,3304.4,3303.5,3.02705]
[1720043855484,4.06926,3304.4,3303.5,3.02705]
[1720043855629,4.06926,3304.4,3303.6,3.02695]
[1720043856057,4.06926,3304.4,3303.4,3.02711]
[1720043856058,4.06926,3304.4,3303.5,3.02709]
[1720043856371,1.149926,3304.3,3303.6,3.02699]
[1720043857368,1.149926,3304.3,3303.4,3.02711]
[1720043857932,1.149926,3304.3,3303.6,3.02692]
[1720043859951,1.149926,3304.3,3303.7,3.0269]
[1720043860148,1.149926,3304.3,3303.7,0.0312016]
[1720043860354,1.149926,3304.3,3303.4,3.02713]
[1720043861091,1.149926,3304.3,3303.5,0.0312016]
[1720043861317,1.149926,3304.3,3303.6,3.02699]
[1720043861455,1.149926,3304.3,3303.6,3.05999034]
[1720043861822,0.5219186,3304.2,3303.6,0.03300034]
[1720043862159,0.5219186,3304.2,3303.4,3.02713]
[1720043862655,0.5219186,3304.2,3303.5,0.03300416]
[1720043862858,3.5483786,3304.2,3303.5,0.03300416]
[1720043863491,2.3613,3304.0,3303.5,0.03300416]
[1720043863790,2.3613,3304.0,3303.3,3.02726]
[1720043863989,2.3613,3304.0,3303.6,0.03300416]
[1720043864160,2.3613,3304.0,3303.3,3.02726]
[1720043864500,2.3613,3304.0,3303.4,3.02709]
[1720043864715,2.3613,3304.0,3303.4,0.03300416]
[1720043868384,0.46983046,3304.1,3303.4,3.36620058]
[1720043868385,3.02654,3304.1,3303.4,3.36620058]
[1720043868638,3.02615,3304.6,3303.6,3.02694]
[1720043868801,3.02615,3304.6,3303.7,3.02683]
[1720043869003,3.02615,3304.6,3303.7,3.05986852]
[1720043869178,3.02615,3304.6,3303.8,3.02679]
[1720043869693,3.02615,3304.6,3303.9,0.03303471]
[1720043869873,3.328805,3304.5,3303.9,0.03303471]
[1720043870063,0.302615,3304.5,3303.9,0.03303471]
[1720043870476,3.02613,3304.6,3303.9,0.03303471]
[1720043873726,1.04826228,3304.5,3303.9,0.03303471]
[1720043873878,3.02613,3304.6,3303.9,0.03303471]
[1720043874223,1.04826712,3304.5,3303.9,0.03303471]
[1720043874420,3.02613,3304.6,3303.9,0.03303471]
[1720043874581,7.43,3305.0,3303.9,0.03303471]
[1720043874779,1.0482605,3304.9,3304.3,3.02634]
[1720043875089,7.43,3305.0,3304.4,0.03294693]
[1720043875327,8.703314,3305.0,3304.4,0.03294693]
[1720043875614,8.703314,3305.0,3304.4,3.02625]
[1720043876139,8.703314,3305.0,3304.5,0.03294693]
[1720043877613,7.43,3305.0,3304.5,0.03294693]
[1720043878376,5.30304,3305.2,3304.5,0.03294693]
[1720043878578,1.04806873,3305.1,3304.5,0.03294693]
[1720043878778,5.30304,3305.2,3304.5,0.03294693]
[1720043879026,1.04807609,3305.1,3304.5,0.03294693]
[1720043879221,5.30304,3305.2,3304.5,0.03294693]
[1720043879378,1.88092547,3305.1,3304.5,0.03294693]
[1720043879579,0.832848,3305.1,3304.5,0.03294693]
[1720043880616,0.832848,3305.1,3304.5,3.05911693]
[1720043880955,0.832848,3305.1,3304.5,0.03294693]
[1720043882008,3.02573,3305.0,3304.5,0.03294693]
[1720043882256,0.3858578,3304.9,3304.5,0.03294693]
[1720043882412,0.3858578,3304.9,3304.3,3.02635]
[1720043882613,0.3858578,3304.9,3304.6,0.03239363]
[1720043882841,0.3858578,3304.9,3304.3,3.02635]
[1720043883052,0.3858578,3304.9,3304.7,0.03239363]
[1720043883260,0.34115878,3304.8,3304.2,3.02638]
[1720043884150,3.9704772,3305.1,3304.6,3.02601]
[1720043884151,0.6298848,3305.1,3304.6,3.02601]
[1720043884349,0.6298848,3305.2,3304.6,3.02601]
[1720043884654,0.6298848,3305.0,3304.6,6.05203]
[1720043884851,0.6298848,3305.1,3304.7,3.02599]
[1720043885518,0.6298848,3305.0,3304.7,3.02599]
[1720043886327,0.6298848,3304.9,3304.6,3.02607]
[1720043886521,0.6298848,3304.9,3304.6,6.05208]
[1720043886742,0.6298848,3304.8,3304.7,3.02599]
[1720043887480,0.9448272,3304.9,3304.7,3.02599]
[1720043887677,0.9448272,3304.8,3304.7,3.02599]
[1720043888579,1.2597696,3304.9,3304.7,3.02599]
[1720043888783,1.2597696,3304.9,3304.7,3.02592]
[1720043888946,0.6341254,3304.9,3304.8,3.0259]
[1720043889485,0.95127865,3305.1,3304.9,3.02581]
[1720043890051,0.95127865,3305.1,3305.0,0.03163958]
[1720043890871,1.2597696,3305.2,3305.0,0.03163958]
[1720043891075,0.95105759,3305.1,3305.0,0.03163958]
[1720043891450,1.2597696,3305.2,3305.0,0.03163958]
[1720043892134,1.2597696,3305.1,3305.0,0.03163958]
[1720043892335,1.2597696,3305.1,3304.8,6.05174]
[1720043892664,0.95086299,3305.0,3304.9,0.03163958]
[1720043893536,1.2597696,3305.1,3304.9,0.03163958]
[1720043895939,1.2597696,3305.0,3304.9,0.03163958]
[1720043896144,1.2673138,3305.0,3304.9,0.03163958]
[1720043897482,1.58414225,3305.1,3304.9,0.03163958]
[1720043899351,1.58393362,3305.1,3304.9,0.03163958]
[1720043899545,1.58393362,3305.0,3304.9,0.03163958]
[1720043902142,1.58393362,3305.1,3304.9,0.03163958]
[1720043902546,1.58429531,3305.0,3304.9,0.03163958]
[1720043902946,1.4525937,3305.4,3304.9,3.05742958]
[1720043903143,1.58429561,3305.1,3304.9,3.05742958]
[1720043903599,1.58429561,3305.0,3304.9,0.03163958]
[1720043904398,1.58429561,3305.0,3304.9,3.05744958]
[1720043904546,1.58429561,3305.1,3304.9,3.05744958]
[1720043904972,2.6322802,3305.0,3304.9,0.03163958]
[1720043905286,1.04798459,3305.0,3304.1,3.0]
[1720043905500,0.95068878,3304.5,3304.4,3.02618]
[1720043905647,1.26758504,3304.6,3304.4,3.02618]
[1720043905847,1.26758504,3304.5,3304.4,3.02618]
[1720043906987,1.26758504,3304.5,3304.2,3.02637]
[1720043907150,0.95087469,3304.3,3304.2,3.02637]
[1720043907491,1.26783292,3304.4,3304.0,3.02655]
[1720043907796,1.5844813,3304.1,3303.7,3.02686]
[1720043908093,1.26815747,3303.8,3303.7,3.02686]
[1720043908463,1.5844813,3303.9,3303.7,3.02686]
[1720043908794,3.02626,3304.4,3303.5,6.05405]
[1720043909098,3.02626,3304.4,3303.6,3.027]
[1720043909099,1.26832506,3303.7,3303.6,3.027]
[1720043909391,1.26832506,3303.7,3303.5,3.02702]
[1720043909550,1.58540709,3303.9,3303.5,3.02702]
[1720043909551,1.26832506,3303.6,3303.5,3.02702]
[1720043910374,1.26832506,3303.6,3303.0,2.3395]
[1720043910375,1.26832506,3303.6,3303.1,3.0274]
[1720043910586,0.9512782,3303.2,3303.0,5.36699]
[1720043910910,0.9512782,3303.1,3303.0,5.36699]
[1720043911049,3.02683,3303.8,3303.0,8.36699]
[1720043911389,0.95147042,3303.1,3303.0,3.02749]
[1720043911750,0.95147042,3303.1,3303.0,6.02749]
[1720043912191,0.95136717,3303.2,3303.0,6.02749]
[1720043915393,0.95096963,3303.2,3303.0,6.02749]
[1720043916259,0.63386827,3303.1,3303.0,6.02749]
[1720043916767,0.95096963,3303.2,3303.0,6.02749]
[1720043916957,0.63386189,3303.1,3303.0,6.02749]
[1720043917540,0.63386189,3303.1,3303.0,3.0]
[1720043917826,0.63386189,3303.1,3303.0,6.02755]
[1720043918024,0.95096963,3303.2,3303.0,6.02755]
[1720043918227,0.63366465,3303.1,3303.0,6.02755]
[1720043918381,0.95096963,3303.2,3303.0,6.02755]
[1720043918584,0.63365035,3303.1,3303.0,6.02755]
[1720043918978,0.63365035,3303.1,3302.8,3.02768]
[1720043919180,0.63365035,3303.0,3302.8,3.02768]
[1720043919985,0.63365035,3303.0,3302.9,0.03199063]
[1720043920190,0.63365035,3303.0,3302.9,3.05962063]
[1720043920928,0.95096963,3303.1,3302.9,0.03199063]
[1720043921085,0.63341422,3303.0,3302.6,6.05576]
[1720043921285,0.63341422,3303.0,3302.7,3.02781]
[1720043921600,3.02719,3303.4,3302.7,3.06005631]
[1720043921914,0.63327966,3302.9,3302.7,3.06005631]
[1720043922114,0.63327966,3302.9,3302.7,0.03224631]
[1720043922315,0.63327966,3303.0,3302.7,0.03224631]
[1720043924513,0.63327966,3303.0,3302.5,3.02799]
[1720043924514,0.63327966,3303.0,3302.6,3.0]
[1720043924713,0.63327966,3303.0,3302.7,0.03224631]
[1720043925631,0.63327966,3303.0,3302.4,3.02809]
[1720043925844,0.63327966,3303.0,3302.8,0.03224631]
[1720043926143,1.09433658,3303.0,3302.9,0.03224631]
[1720043926332,1.09433658,3303.0,3302.4,3.02809]
[1720043926527,0.63327966,3303.0,3302.9,0.03224631]
[1720043926709,0.63327966,3303.0,3302.4,3.02809]
[1720043927047,0.63327966,3303.0,3302.2,5.51107]
[1720043927048,0.63327966,3302.9,3302.5,0.03224631]
[1720043927420,0.63327966,3302.9,3302.3,3.0]
[1720043927625,0.63327966,3302.7,3302.6,0.03241424]
[1720043927814,0.63327966,3302.7,3302.2,2.4828]
[1720043928019,0.63327966,3302.7,3302.6,0.03241424]
[1720043928222,0.63249081,3302.7,3302.0,3.0]
[1720043928428,0.63249081,3302.7,3302.6,0.03260892]
[1720043928647,3.97651825,3302.8,3302.0,6.02842]
[1720043928815,0.63249838,3302.6,3302.0,6.02842]
[1720043929351,0.63249838,3302.6,3302.0,3.02844]
[1720043930552,0.63249838,3302.6,3301.8,2.4411]
[1720043930553,3.02801,3302.5,3301.8,5.46972]
[1720043930841,3.66050838,3302.5,3301.8,5.46972]
[1720043931060,3.66050838,3302.5,3301.9,3.0]
[1720043931226,3.02801,3302.5,3301.9,3.0]
[1720043932723,3.02801,3302.5,3301.8,3.02862]
[1720043933654,6.05671,3302.2,3301.4,3.02894]
[1720043933949,6.68920838,3302.2,3301.4,3.02894]
[1720043934112,0.63249838,3302.1,3301.4,3.02894]
[1720043934309,3.02838,3302.1,3301.4,3.02894]
[1720043934839,3.02838,3302.1,3301.5,0.03283804]
[1720043936273,3.02851,3302.0,3301.5,0.03283804]
[1720043936617,3.02851,3302.0,3301.3,3.0]
[1720043936945,3.02851,3302.0,3301.3,6.0291]
[1720043937111,3.02851,3302.0,3301.4,0.0330405]
[1720043938218,3.02851,3302.0,3301.2,3.0]
[1720043938556,3.02865,3301.8,3301.2,3.0]
[1720043938853,3.02865,3301.8,3301.3,0.03354843]
[1720043939252,3.02865,3301.8,3301.2,3.0]
[1720043939454,3.02865,3301.8,3301.4,0.03354843]
[1720043939614,3.634366,3301.8,3300.6,2.2909]
[1720043939815,5.28315,3301.8,3301.5,0.03354843]
[1720043940079,5.28315,3301.8,3300.6,2.60045224]
[1720043940427,3.02888,3301.6,3300.6,2.2909]
[1720043940762,3.02888,3301.6,3300.8,3.02951]
[1720043940933,3.02888,3301.6,3300.8,6.05901]
[1720043941134,3.02888,3301.6,3300.8,3.0295]
[1720043941346,3.02888,3301.6,3300.8,6.059]
[1720043941562,3.02888,3301.6,3300.9,0.03354843]
[1720043941861,3.860083,3301.6,3300.9,0.03354843]
[1720043942163,3.860083,3301.6,3300.9,3.06300843]
[1720043942821,0.63119283,3302.0,3300.9,0.03354843]
[1720043943027,7.43,3302.5,3302.1,3.02831]
[1720043943229,13.12119283,3302.9,3302.1,3.02831]
[1720043943230,0.94678924,3303.1,3302.2,0.55]
[1720043943461,0.28396392,3303.1,3302.3,0.06055429]
[1720043943625,7.43,3303.3,3302.7,3.02779]
[1720043943830,5.50991,3303.5,3302.8,3.02768]
[1720043944031,5.50991,3303.5,3302.8,3.06141949]
[1720043944258,2.4828,3303.5,3302.8,3.06141949]
[1720043944466,0.63119283,3303.6,3302.8,3.06141949]
[1720043944467,0.63119283,3303.7,3302.9,3.06055421]
[1720043944626,11.69550502,3304.4,3302.9,3.06055421]
[1720043944627,10.43439283,3304.4,3303.6,3.02691]
[1720043944825,9.8032,3304.4,3303.7,3.02688]
[1720043945025,9.8032,3304.4,3303.7,3.0600694]
[1720043945246,1.34606228,3304.3,3303.7,3.0600694]
[1720043947239,1.97725511,3304.3,3303.8,3.02681]
[1720043947675,7.43,3304.4,3304.0,3.02655]
[1720043947860,7.43,3304.4,3304.1,3.02653]
[1720043948198,7.43,3304.4,3304.2,0.03285347]
[1720043948368,7.43,3304.4,3304.1,3.02653]
[1720043948556,7.43,3304.4,3304.3,0.03213181]
[1720043948751,0.63119283,3304.5,3304.1,3.02653]
[1720043950311,0.63119283,3304.4,3304.1,3.02653]
[1720043950594,0.63119283,3304.5,3304.3,3.02635]
[1720043950973,0.63119283,3304.5,3304.4,3.02626]
[1720043951175,0.63119283,3304.5,3304.4,3.05827733]
[1720043953598,0.63119283,3304.5,3304.4,0.03201733]
[1720043953599,0.94678924,3304.5,3304.4,0.03201733]
[1720043953811,3.18396821,3304.5,3303.7,3.02689]
[1720043953961,0.63204699,3304.2,3303.7,3.02689]
[1720043954161,0.63204699,3304.1,3303.7,3.02689]
[1720043954366,0.63204699,3304.1,3303.8,3.02677]
[1720043954590,0.63204699,3304.2,3304.0,3.02663]
[1720043954759,0.63204699,3304.2,3304.1,3.02654]
[1720043954964,0.63204699,3304.3,3304.2,3.02645]
[1720043957129,0.63204699,3304.4,3304.2,3.02645]
[1720043957337,0.63204699,3304.5,3304.2,3.02645]
[1720043959406,0.63204699,3304.6,3304.2,3.02645]
[1720043959795,0.63204699,3304.5,3304.2,3.02645]
[1720043960001,0.79005874,3304.5,3303.7,3.02683]
[1720043960322,0.63204699,3304.3,3303.8,3.02681]
[1720043962606,0.63204699,3304.2,3303.8,3.02681]
[1720043965113,0.63204699,3304.2,3303.9,0.03064591]
[1720043965840,3.02663,3304.0,3303.9,0.03064591]
[1720043965996,3.02663,3304.0,3303.0,2.3367]
[1720043965997,3.02679,3303.9,3303.0,3.02749]
[1720043966194,0.63156044,3303.7,3303.0,3.02749]
[1720043966401,0.63156044,3303.5,3303.0,3.02749]
[1720043969822,0.63156044,3303.5,3302.7,3.02773]
[1720043970152,0.63156044,3303.5,3302.9,3.02762]
[1720043970524,0.63156044,3303.5,3302.7,6.574453]
[1720043970725,0.63156044,3303.5,3302.8,3.02772]
[1720043971155,0.63156044,3303.5,3302.7,3.546703]
[1720043971370,0.63156044,3303.5,3302.7,6.574453]
[1720043971661,0.63156044,3303.5,3302.7,3.546703]
[1720043971869,0.63160815,3303.4,3302.7,3.546703]
[1720043972355,0.63160815,3303.4,3302.8,3.02769]
[1720043972557,0.63160815,3303.5,3302.8,3.02769]
[1720043973760,0.63160815,3303.4,3302.8,3.02769]
[1720043973960,0.63160815,3303.5,3302.8,3.6851293]
[1720043974527,0.63160815,3303.4,3302.8,3.6851293]
[1720043975066,0.63160815,3303.4,3302.4,2.4983]
[1720043975067,3.02736,3303.3,3302.4,2.4983]
[1720043975255,0.63160815,3303.2,3302.4,5.52634]
[1720043975453,3.65896815,3303.2,3302.4,5.52634]
[1720043977455,0.63160815,3303.1,3302.4,5.52634]
[1720043978584,0.63160815,3303.1,3302.4,2.4983]
[1720043978741,0.63183346,3303.1,3302.4,2.4983]
[1720043979174,1.39526383,3303.1,3302.4,3.02809]
[1720043979551,0.63183346,3303.0,3302.4,3.02809]
[1720043980278,0.63183346,3303.0,3302.5,3.0]
[1720043980477,3.02747,3303.1,3302.5,3.0]
[1720043980478,0.63183346,3302.9,3302.5,3.0]
[1720043980783,0.63183346,3302.9,3302.4,3.02809]
[1720043981157,0.63183346,3302.9,3302.1,6.02832]
[1720043981158,0.63183346,3302.9,3302.3,3.02817]
[1720043981364,0.63183346,3302.9,3302.4,3.0]
[1720043981664,0.63183346,3302.8,3302.4,3.0]
[1720043981838,0.63183346,3302.9,3302.4,3.0]
[1720043982035,0.63183346,3302.9,3302.1,3.02832]
[1720043982036,3.65947346,3302.9,3302.1,3.02832]
[1720043982265,0.63183346,3302.8,3302.2,3.02823]
[1720043982465,0.63183346,3302.7,3302.2,3.02823]
[1720043983392,0.63183346,3302.6,3302.2,3.02823]
[1720043983541,0.63183346,3302.6,3302.0,3.02838]
[1720043983899,0.63183346,3302.6,3302.1,3.776428]
[1720043984650,0.63183346,3302.6,3302.2,3.02827]
[1720043985285,0.63183346,3302.5,3302.2,3.02827]
[1720043985849,0.63183346,3302.6,3302.2,6.05649]
[1720043986184,0.63183346,3302.6,3302.2,6.7369458]
[1720043986379,0.63183346,3302.6,3302.2,3.7086758]
[1720043986585,0.63183346,3302.5,3302.2,3.7086758]
[1720043987293,0.63183346,3302.5,3302.2,3.02822]
[1720043987950,0.63183346,3302.5,3302.2,6.05644]
[1720043988143,0.63183346,3302.4,3302.2,6.05644]
[1720043988344,0.63183346,3302.3,3302.2,3.02822]
[1720043988545,0.63183346,3302.3,3302.2,3.02821]
[1720043989556,0.63183346,3302.4,3302.2,6.05643]
[1720043989750,0.63183346,3302.4,3302.2,3.02821]
[1720043989955,0.94775019,3302.5,3302.3,0.9]
[1720043990552,0.63357842,3302.4,3302.3,0.9]
[1720043991303,0.95036234,3302.5,3302.0,3.02841]
[1720043991481,0.95036234,3302.5,3302.1,0.9]
[1720043991482,0.63352705,3302.2,3302.1,0.9]
[1720043991657,0.63353825,3302.2,3302.1,0.9]
[1720043991858,0.95030737,3302.3,3302.1,0.9]
[1720043992457,0.63345816,3302.2,3302.1,0.9]
[1720043992684,0.95030737,3302.3,3302.1,0.9]
[1720043993113,0.6334615,3302.2,3302.1,0.9]
[1720043993308,0.95030737,3302.3,3302.1,0.9]
[1720043993523,0.63338348,3302.2,3302.1,0.9]
[1720043994782,0.63338348,3302.2,3301.7,3.0]
[1720043994986,0.63338348,3302.1,3301.9,0.9]
[1720043997519,0.63338348,3302.1,3301.6,0.9]
[1720043997520,0.94996758,3302.1,3301.6,0.9]
[1720043997820,0.6333451,3301.8,3301.4,3.029]
[1720043997988,0.6333451,3301.7,3301.5,0.9]
[1720043998323,0.94996758,3301.7,3301.2,3.92918]
[1720043998627,1.26662344,3301.8,3301.2,3.92918]
[1720043998628,0.63326304,3301.6,3301.2,0.9]
[1720043998777,0.63326304,3301.6,3301.1,0.9]
[1720043998980,0.63326304,3301.5,3301.1,0.9]
[1720043999277,0.63326304,3301.3,3301.0,0.9]
[1720044000417,0.63326304,3301.3,3300.4,3.02987]
[1720044000418,0.7915861,3301.3,3300.4,3.02987]
[1720044000622,0.7915861,3301.3,3300.3,2.4277]
[1720044000623,0.94996758,3301.1,3301.0,5.4259]
[1720044000794,1.89997559,3301.8,3301.0,5.4259]
[1720044000795,0.63335592,3301.5,3301.2,3.0292]
[1720044001092,0.63335592,3301.7,3301.4,3.929]
[1720044001293,0.94996758,3301.9,3301.6,0.9]
[1720044001516,6.23362303,3301.8,3301.1,0.9]
[1720044001726,0.95004451,3301.5,3301.4,3.02901]
[1720044001885,1.58331299,3301.9,3301.4,3.02901]
[1720044001886,0.95004451,3301.9,3301.6,3.02883]
[1720044002639,2.2549,3302.3,3301.6,3.02883]